fUSD/lending_fUSD_20250916
["ID","MTS","AMOUNT","RATE_DAILY","PERIOD"]
[385774574,1758031846511,-1481.7521938,0.00026639,2]
[385774576,1758031846521,-1239.4312,0.0002668,2]
[385774578,1758031846530,-3506.2308,0.00026727,2]
[385774580,1758031846540,-168.0,0.00026748,2]
[385774582,1758031846549,-4586.2994,0.0002678,2]
[385774584,1758031846559,-168.0,0.00026811,2]
[385774586,1758031846569,-179.7,0.00026842,2]
[385774588,1758031846579,-1122.91,0.00026848,2]
[385774590,1758031846589,-471.14589452,0.00026879,2]
[385774591,1758031846599,-4568.05,0.00026923,2]
[385774593,1758031846609,-218.72,0.00026939,2]
[385774595,1758031846618,-168.0,0.00027049,2]
[385774597,1758031846629,-168.0,0.00027063,2]
[385774599,1758031846639,-151.0,0.00027074,2]
[385774601,1758031846648,-577.0,0.00027137,2]
[385774603,1758031846658,-1481.7521938,0.00027359,2]
[385774605,1758031846668,-187.05690275,0.00027397,2]
[385774607,1758031846678,-1419.69,0.00027397,2]
[385774609,1758031846691,-19152.41,0.00027397,2]
[385774611,1758031846710,-9333.87,0.00027397,2]
[385774613,1758031846721,-150.0,0.00027419,7]
[385774615,1758031846731,-150.0,0.00027419,7]
[385774616,1758031846740,-150.0,0.00027419,7]
[385774618,1758031846750,-150.0,0.00027419,7]
[385774620,1758031846760,-150.0,0.00027419,7]
[385774622,1758031846771,-150.0,0.00027419,7]
[385774624,1758031846781,-150.0,0.00027419,7]
[385774626,1758031846791,-269.26853002,0.00027419,7]
[385774628,1758031846801,-150.0,0.00027419,7]
[385774630,1758031846811,-150.0,0.00027419,7]
[385774632,1758031846821,-150.0,0.00027419,7]
[385774634,1758031846831,-150.0,0.00027419,7]
[385774636,1758031846840,-162.31,0.00027425,30]
[385774638,1758031846850,-298.26089446,0.0002756,2]
[385774640,1758031846860,-251.80504433,0.00027622,2]
[385774642,1758031846870,-150.0,0.00027716,2]
[385774644,1758031846884,-373.49319814,0.00027842,2]
[385774646,1758031846894,-438.04757806,0.00027968,2]
[385774647,1758031846904,-192.5275,0.00027999,2]
[385774649,1758031846915,-1481.7521938,0.00028079,2]
[385774651,1758031846926,-502.60195799,0.00028095,2]
[385774653,1758031846936,-2621.71,0.000281,2]
[385774655,1758031846946,-179.7,0.0002812,2]
[385774657,1758031846955,-150.0,0.00028181,7]
[385774659,1758031846966,-567.15633791,0.00028221,2]
[385774661,1758031846975,-9263.24860141,0.00028263,2]
[385774663,1758031846985,-2039.0,0.00028299,2]
[385774665,1758031846995,-755.0,0.00028299,2]
[385774667,1758031847005,-3390.0,0.00028299,2]
[385774669,1758031847014,-568.0,0.00028299,2]
[385774670,1758031847024,-1303.0,0.00028299,2]
[385774672,1758031847033,-602.0,0.00028299,2]
[385774674,1758031847044,-1581.0,0.00028299,2]
[385774676,1758031847053,-813.0,0.00028299,2]
[385774678,1758031847063,-399.979,0.00028299,2]
[385774680,1758031847081,-194.0176129,0.00028328,19]
[385774682,1758031847090,-345.534,0.00028342,19]
[385774684,1758031847100,-631.71071784,0.00028347,2]
[385774686,1758031847109,-200.0,0.00028363,2]
[385774688,1758031847119,-696.26509776,0.00028474,2]
[385774690,1758031847130,-1998.29144388,0.000285,2]
[385774692,1758031847139,-760.81947769,0.000286,2]
[385774694,1758031847149,-9263.24860141,0.00028643,2]
[385774696,1758031847159,-825.37385761,0.00028726,2]
[385774698,1758031847169,-1481.7521938,0.000288,2]
[385774700,1758031847179,-889.92823754,0.00028853,2]
[385774702,1758031847188,-309.29654756,0.00028929,2]
[385774704,1758031847199,-150.0,0.00028942,7]
[385774706,1758031847209,-150.0,0.00028942,7]
[385774708,1758031847218,-150.0,0.00028942,7]
[385774710,1758031847228,-150.0,0.00028942,7]
[385774712,1758031847238,-954.48261747,0.00028979,2]
[385774713,1758031847248,-944.0,0.00028992,5]
[385774715,1758031847258,-9263.24860141,0.00029022,2]
[385774717,1758031847268,-1019.03699739,0.00029105,2]
[385774719,1758031847278,-236.24,0.00029214,2]
[385774721,1758031847289,-930.79971926,0.00029231,2]
[385774723,1758031847299,-1083.59137732,0.00029232,2]
[385774725,1758031847308,-164.72,0.00029355,2]
[385774727,1758031847318,-1148.14575724,0.00029358,2]
[385774729,1758031847328,-179.7,0.00029398,2]
[385774731,1758031847338,-1212.70013717,0.00029484,2]
[385774733,1758031847348,-1481.7521938,0.0002952,2]
[385774735,1758031847358,-1277.25451709,0.0002961,2]
[385774737,1758031847368,-150.0,0.00029704,7]
[385774739,1758031847380,-1341.80889702,0.00029737,2]
[385774741,1758031847391,-1406.36327694,0.00029863,2]
[385774743,1758031847401,-6086.85,0.000299,2]
[385774745,1758031847410,-1470.91765687,0.00029989,2]
[385774747,1758031847419,-166.0,0.0003,14]
[385774749,1758031847429,-271.16315475,0.00030026,15]
[385774751,1758031847438,-5000.0,0.00030036,2]
[385774753,1758031847448,-10306.6634485,0.00030116,2]
[385774756,1758031847459,-2595.18,0.00030116,2]
[385774758,1758031847468,-1535.47203679,0.00030116,2]
[385774760,1758031847478,-184.45,0.00030125,2]
[385774762,1758031847487,-184.45,0.00030125,2]
[385774764,1758031847497,-184.45,0.00030125,2]
[385774765,1758031847507,-309199.903456,0.00030126,2]
[385774767,1758031847516,-228.06950257,0.00030126,2]
[385774770,1758031847527,-886.48039086,0.00030126,2]
[385774772,1758031847536,-1000.01,0.00030135,2]
[385774773,1758031847545,-400.0,0.00030136,6]
[385774774,1758031847555,-278.57018922,0.00030136,6]
[385774775,1758031847564,-244.38346139,0.00030136,6]
[385774776,1758031847574,-400.0,0.00030136,6]
[385774777,1758031847583,-409.71794251,0.00030136,6]
[385774778,1758031847594,-400.0,0.00030136,6]
[385774779,1758031847604,-400.0,0.00030136,6]
[385774780,1758031847613,-400.0,0.00030136,6]
[385774781,1758031847623,-400.0,0.00030136,6]
[385774782,1758031847634,-400.0,0.00030136,6]
[385774809,1758031847971,-400.0,0.00030136,6]
[385774811,1758031847984,-405.47500273,0.00030136,6]
[385774813,1758031847994,-400.0,0.00030136,6]
[385774815,1758031848004,-400.0,0.00030136,6]
[385774817,1758031848014,-400.0,0.00030136,6]
[385774819,1758031848024,-401.72513313,0.00030136,6]
[385774821,1758031848034,-211.51547744,0.00030136,6]
[385774823,1758031848044,-414.37381499,0.00030136,6]
[385774825,1758031848053,-400.0,0.00030136,6]
[385774827,1758031848063,-400.0,0.00030136,6]
[385774829,1758031848074,-400.0,0.00030136,6]
[385774831,1758031848084,-400.0,0.00030136,6]
[385774833,1758031848094,-400.0,0.00030136,6]
[385774836,1758031848105,-400.93598567,0.00030136,6]
[385774838,1758031848115,-400.0,0.00030136,6]
[385774839,1758031848125,-400.0,0.00030136,6]
[385774842,1758031848135,-400.0,0.00030136,6]
[385774844,1758031848145,-400.0,0.00030136,6]
[385774846,1758031848155,-400.0,0.00030136,6]
[385774848,1758031848164,-400.0,0.00030136,6]
[385774850,1758031848174,-400.0,0.00030136,6]
[385774852,1758031848183,-400.0,0.00030136,6]
[385774854,1758031848193,-400.99696908,0.00030136,6]
[385774856,1758031848202,-400.0,0.00030136,6]
[385774858,1758031848212,-400.0,0.00030136,6]
[385774860,1758031848221,-400.0,0.00030136,6]
[385774862,1758031848231,-489.69,0.00030136,6]
[385774864,1758031848240,-400.0,0.00030136,6]
[385774866,1758031848251,-400.0,0.00030136,6]
[385774868,1758031848260,-181.99694642,0.00030136,6]
[385774870,1758031848270,-400.0,0.00030136,6]
[385774872,1758031848280,-400.0,0.00030136,6]
[385774874,1758031848289,-401.22779498,0.00030136,6]
[385774876,1758031848299,-430.47,0.00030136,6]
[385774878,1758031848309,-400.0,0.00030136,6]
[385774880,1758031848318,-400.0,0.00030136,6]
[385774882,1758031848328,-400.0,0.00030136,6]
[385774884,1758031848338,-400.0,0.00030136,6]
[385774886,1758031848348,-400.0,0.00030136,6]
[385774888,1758031848357,-400.0,0.00030136,6]
[385774890,1758031848367,-401.64342139,0.00030136,6]
[385774892,1758031848378,-400.0,0.00030136,6]
[385774894,1758031848388,-400.0,0.00030136,6]
[385774896,1758031848397,-400.0,0.00030136,6]
[385774898,1758031848407,-400.0,0.00030136,6]
[385774900,1758031848416,-400.0,0.00030136,6]
[385774902,1758031848426,-405.0608498,0.00030136,6]
[385774904,1758031848435,-400.0,0.00030136,6]
[385774906,1758031848444,-400.0,0.00030136,6]
[385774908,1758031848454,-400.0,0.00030136,6]
[385774910,1758031848463,-400.0,0.00030136,6]
[385774912,1758031848472,-405.56690658,0.00030136,6]
[385774914,1758031848482,-400.0,0.00030136,6]
[385774916,1758031848491,-400.0,0.00030136,6]
[385774918,1758031848500,-400.0,0.00030136,6]
[385774920,1758031848510,-212.22772828,0.00030136,6]
[385774922,1758031848519,-400.0,0.00030136,6]
[385774925,1758031848529,-402.7744987,0.00030136,6]
[385774927,1758031848538,-498.84,0.00030136,6]
[385774929,1758031848547,-400.0,0.00030136,6]
[385774930,1758031848556,-400.0,0.00030136,6]
[385774932,1758031848566,-400.0,0.00030136,6]
[385774935,1758031848576,-400.0,0.00030136,6]
[385774937,1758031848585,-400.0,0.00030136,6]
[385774939,1758031848594,-400.0,0.00030136,6]
[385774941,1758031848604,-402.91320265,0.00030136,6]
[385774943,1758031848614,-400.0,0.00030136,6]
[385774945,1758031848625,-497.31989914,0.00030136,6]
[385774947,1758031848635,-400.0,0.00030136,6]
[385774949,1758031848645,-400.0,0.00030136,6]
[385774951,1758031848654,-548.41,0.00030136,6]
[385774953,1758031848664,-400.0,0.00030136,6]
[385774955,1758031848673,-400.0,0.00030136,6]
[385774957,1758031848683,-163.51345417,0.00030136,6]
[385774959,1758031848693,-400.0,0.00030136,6]
[385774961,1758031848703,-400.0,0.00030136,6]
[385774963,1758031848712,-402.30076805,0.00030136,6]
[385774965,1758031848721,-400.0,0.00030136,6]
[385774967,1758031848732,-400.0,0.00030136,6]
[385774969,1758031848742,-400.0,0.00030136,6]
[385774971,1758031848751,-400.0,0.00030136,6]
[385774973,1758031848761,-406.18,0.00030136,6]
[385774975,1758031848771,-400.0,0.00030136,6]
[385774978,1758031848781,-400.0,0.00030136,6]
[385774979,1758031848790,-546.6724359,0.00030136,6]
[385774982,1758031848800,-400.0,0.00030136,6]
[385774984,1758031848811,-400.0,0.00030136,6]
[385774986,1758031848820,-400.0,0.00030136,6]
[385774988,1758031848830,-400.0,0.00030136,6]
[385774990,1758031848841,-400.0,0.00030136,6]
[385774992,1758031848851,-502.24053838,0.00030136,6]
[385774994,1758031848860,-560.35,0.00030136,6]
[385774996,1758031848871,-400.0,0.00030136,6]
[385774998,1758031848883,-400.0,0.00030136,6]
[385775000,1758031848893,-400.0,0.00030136,6]
[385775002,1758031848903,-400.0,0.00030136,6]
[385775004,1758031848914,-400.0,0.00030136,6]
[385775006,1758031848926,-1033.36,0.00030136,6]
[385775008,1758031848936,-455.34,0.00030136,6]
[385775011,1758031848946,-401.25155946,0.00030136,6]
[385775013,1758031848956,-400.0,0.00030136,6]
[385775015,1758031848966,-400.0,0.00030136,6]
[385775017,1758031848976,-400.0,0.00030136,6]
[385775019,1758031848986,-554.1,0.00030136,6]
[385775021,1758031848996,-400.0,0.00030136,6]
[385775023,1758031849005,-838.33,0.00030136,6]
[385775025,1758031849015,-400.0,0.00030136,6]
[385775027,1758031849025,-400.0,0.00030136,6]
[385775029,1758031849034,-400.0,0.00030136,6]
[385775031,1758031849045,-400.0,0.00030136,6]
[385775033,1758031849055,-390.52442586,0.00030136,6]
[385775035,1758031849065,-461.42,0.00030136,6]
[385775037,1758031849075,-400.0,0.00030136,6]
[385775039,1758031849085,-400.0,0.00030136,6]
[385775041,1758031849095,-400.0,0.00030136,6]
[385775043,1758031849104,-400.0,0.00030136,6]
[385775045,1758031849115,-400.0,0.00030136,6]
[385775047,1758031849127,-385.86502437,0.00030136,6]
[385775049,1758031849136,-400.0,0.00030136,6]
[385775052,1758031849146,-400.0,0.00030136,6]
[385775054,1758031849155,-400.0,0.00030136,6]
[385775056,1758031849164,-400.0,0.00030136,6]
[385775058,1758031849173,-400.0,0.00030136,6]
[385775060,1758031849183,-526.77,0.00030136,6]
[385775062,1758031849194,-400.0,0.00030136,6]
[385775064,1758031849203,-400.0,0.00030136,6]
[385775066,1758031849212,-400.0,0.00030136,6]
[385775068,1758031849222,-400.0,0.00030136,6]
[385775070,1758031849231,-607.57,0.00030136,6]
[385775072,1758031849240,-400.0,0.00030136,6]
[385775074,1758031849250,-400.0,0.00030136,6]
[385775076,1758031849260,-400.0,0.00030136,6]
[385775078,1758031849270,-400.0,0.00030136,6]
[385775080,1758031849279,-400.0,0.00030136,6]
[385775082,1758031849288,-400.0,0.00030136,6]
[385775084,1758031849297,-400.0,0.00030136,6]
[385775086,1758031849306,-400.0,0.00030136,6]
[385775088,1758031849315,-400.0,0.00030136,6]
[385775090,1758031849325,-472.99377091,0.00030136,6]
[385775092,1758031849335,-400.0,0.00030136,6]
[385775094,1758031849344,-400.0,0.00030136,6]
[385775096,1758031849353,-421.40979948,0.00030136,6]
[385775098,1758031849362,-400.0,0.00030136,6]
[385775100,1758031849372,-400.0,0.00030136,6]
[385775102,1758031849383,-400.0,0.00030136,6]
[385775104,1758031849392,-400.0,0.00030136,6]
[385775106,1758031849401,-503.71,0.00030136,6]
[385775108,1758031849411,-400.0,0.00030136,6]
[385775110,1758031849420,-480.74,0.00030136,6]
[385775112,1758031849429,-400.0,0.00030136,6]
[385775114,1758031849438,-400.0,0.00030136,6]
[385775116,1758031849447,-400.0,0.00030136,6]
[385775118,1758031849456,-400.0,0.00030136,6]
[385775120,1758031849466,-400.0,0.00030136,6]
[385775122,1758031849475,-585.53,0.00030136,6]
[385775124,1758031849485,-400.0,0.00030136,6]
[385775126,1758031849494,-400.0,0.00030136,6]
[385775129,1758031849504,-400.0,0.00030136,6]
[385775131,1758031849514,-400.0,0.00030136,6]
[385775133,1758031849523,-389.56639416,0.00030136,6]
[385775135,1758031849532,-524.55,0.00030136,6]
[385775137,1758031849541,-412.60826891,0.00030136,6]
[385775138,1758031849550,-400.0,0.00030136,6]
[385775141,1758031849560,-400.0,0.00030136,6]
[385775143,1758031849569,-400.0,0.00030136,6]
[385775145,1758031849579,-400.0,0.00030136,6]
[385775147,1758031849588,-400.0,0.00030136,6]
[385775149,1758031849598,-416.97,0.00030136,6]
[385775151,1758031849607,-410.98447964,0.00030136,6]
[385775153,1758031849616,-586.61,0.00030136,6]
[385775155,1758031849626,-718.9,0.00030136,6]
[385775157,1758031849635,-400.0,0.00030136,6]
[385775159,1758031849645,-426.73231113,0.00030136,6]
[385775161,1758031849655,-400.0,0.00030136,6]
[385775163,1758031849664,-785.86,0.00030136,6]
[385775165,1758031849673,-400.0,0.00030136,6]
[385775167,1758031849683,-400.0,0.00030136,6]
[385775169,1758031849692,-473.1,0.00030136,6]
[385775171,1758031849701,-400.0,0.00030136,6]
[385775173,1758031849711,-400.0,0.00030136,6]
[385775175,1758031849720,-400.0,0.00030136,6]
[385775177,1758031849729,-400.0,0.00030136,6]
[385775179,1758031849738,-400.0,0.00030136,6]
[385775181,1758031849747,-400.0,0.00030136,6]
[385775183,1758031849757,-400.0,0.00030136,6]
[385775185,1758031849766,-599.99,0.00030136,6]
[385775187,1758031849776,-400.0,0.00030136,6]
[385775189,1758031849785,-400.0,0.00030136,6]
[385775191,1758031849795,-629.27,0.00030136,6]
[385775193,1758031849804,-400.0,0.00030136,6]
[385775195,1758031849814,-400.0,0.00030136,6]
[385775197,1758031849823,-630.06,0.00030136,6]
[385775199,1758031849832,-400.0,0.00030136,6]
[385775201,1758031849842,-400.0,0.00030136,6]
[385775203,1758031849851,-402.86043375,0.00030136,6]
[385775205,1758031849861,-400.0,0.00030136,6]
[385775207,1758031849871,-400.0,0.00030136,6]
[385775209,1758031849884,-400.0,0.00030136,6]
[385775211,1758031849893,-400.0,0.00030136,6]
[385775213,1758031849903,-168.154749,0.00030136,6]
[385775215,1758031849912,-400.0,0.00030136,6]
[385775217,1758031849922,-400.0,0.00030136,6]
[385775219,1758031849931,-400.0,0.00030136,6]
[385775221,1758031849941,-400.0,0.00030136,6]
[385775223,1758031849951,-400.0,0.00030136,6]
[385775225,1758031849960,-403.439128,0.00030136,6]
[385775227,1758031849969,-400.0,0.00030136,6]
[385775229,1758031849979,-400.0,0.00030136,6]
[385775231,1758031849988,-400.0,0.00030136,6]
[385775233,1758031849997,-400.0,0.00030136,6]
[385775235,1758031850007,-400.0,0.00030136,6]
[385775237,1758031850016,-400.0,0.00030136,6]
[385775239,1758031850025,-400.0,0.00030136,6]
[385775241,1758031850035,-400.0,0.00030136,6]
[385775243,1758031850044,-406.24732596,0.00030136,6]
[385775245,1758031850054,-400.0,0.00030136,6]
[385775247,1758031850063,-400.0,0.00030136,6]
[385775249,1758031850073,-400.0,0.00030136,6]
[385775251,1758031850082,-449.34161604,0.00030136,6]
[385775252,1758031850092,-400.0,0.00030136,6]
[385775255,1758031850101,-627.29,0.00030136,6]
[385775257,1758031850111,-400.0,0.00030136,6]
[385775258,1758031850120,-410.86017213,0.00030136,6]
[385775260,1758031850132,-400.0,0.00030136,6]
[385775263,1758031850141,-400.0,0.00030136,6]
[385775265,1758031850151,-400.0,0.00030136,6]
[385775266,1758031850161,-400.0,0.00030136,6]
[385775268,1758031850170,-400.0,0.00030136,6]
[385775271,1758031850180,-485.27,0.00030136,6]
[385775272,1758031850190,-400.0,0.00030136,6]
[385775275,1758031850200,-403.67636962,0.00030136,6]
[385775276,1758031850209,-400.0,0.00030136,6]
[385775278,1758031850219,-400.0,0.00030136,6]
[385775281,1758031850229,-400.0,0.00030136,6]
[385775282,1758031850239,-400.0,0.00030136,6]
[385775285,1758031850248,-400.0,0.00030136,6]
[385775286,1758031850258,-400.0,0.00030136,6]
[385775287,1758031850267,-400.0,0.00030136,6]
[385775288,1758031850277,-366.82887729,0.00030136,6]
[385775289,1758031850287,-400.0,0.00030136,6]
[385775290,1758031850296,-402.48728508,0.00030136,6]
[385775291,1758031850306,-400.0,0.00030136,6]
[385775292,1758031850315,-401.77748387,0.00030136,6]
[385775293,1758031850325,-400.0,0.00030136,6]
[385775294,1758031850336,-400.0,0.00030136,6]
[385775295,1758031850345,-400.0,0.00030136,6]
[385775296,1758031850355,-400.0,0.00030136,6]
[385775297,1758031850449,-400.0,0.00030136,6]
[385775298,1758031850459,-400.0,0.00030136,6]
[385775299,1758031850468,-404.20280344,0.00030136,6]
[385775300,1758031850478,-400.0,0.00030136,6]
[385775301,1758031850488,-400.0,0.00030136,6]
[385775302,1758031850497,-400.0,0.00030136,6]
[385775303,1758031850507,-400.0,0.00030136,6]
[385775304,1758031850516,-500.0,0.00030136,6]
[385775305,1758031850526,-500.0,0.00030136,6]
[385775306,1758031850537,-400.0,0.00030136,6]
[385775307,1758031850546,-500.0,0.00030136,6]
[385775308,1758031850555,-500.0,0.00030136,6]
[385775309,1758031850564,-500.0,0.00030136,6]
[385775310,1758031850573,-437.05,0.00030136,6]
[385775311,1758031850582,-500.0,0.00030136,6]
[385775312,1758031850592,-500.0,0.00030136,6]
[385775313,1758031850601,-400.0,0.00030136,6]
[385775314,1758031850611,-500.0,0.00030136,6]
[385775315,1758031850620,-508.69956198,0.00030136,6]
[385775316,1758031850630,-400.0,0.00030136,6]
[385775317,1758031850640,-400.0,0.00030136,6]
[385775318,1758031850649,-400.0,0.00030136,6]
[385775319,1758031850659,-727.03,0.00030136,6]
[385775320,1758031850668,-400.0,0.00030136,6]
[385775321,1758031850677,-400.0,0.00030136,6]
[385775322,1758031850687,-400.0,0.00030136,6]
[385775323,1758031850696,-400.0,0.00030136,6]
[385775324,1758031850706,-400.0,0.00030136,6]
[385775325,1758031850715,-400.0,0.00030136,6]
[385775326,1758031850724,-400.0,0.00030136,6]
[385775327,1758031850733,-400.0,0.00030136,6]
[385775328,1758031850742,-400.0,0.00030136,6]
[385775329,1758031850752,-400.0,0.00030136,6]
[385775330,1758031850761,-400.0,0.00030136,6]
[385775331,1758031850772,-400.0,0.00030136,6]
[385775332,1758031850781,-630.72,0.00030136,6]
[385775333,1758031850791,-400.0,0.00030136,6]
[385775334,1758031850801,-517.90511062,0.00030136,6]
[385775335,1758031850810,-400.0,0.00030136,6]
[385775336,1758031850819,-405.14186593,0.00030136,6]
[385775337,1758031850829,-537.98,0.00030136,6]
[385775338,1758031850838,-400.0,0.00030136,6]
[385775339,1758031850848,-400.0,0.00030136,6]
[385775340,1758031850858,-580.05,0.00030136,6]
[385775341,1758031850868,-400.0,0.00030136,6]
[385775342,1758031850881,-300.0,0.00030136,6]
[385775343,1758031850891,-400.0,0.00030136,6]
[385775344,1758031850900,-400.0,0.00030136,6]
[385775345,1758031850909,-400.0,0.00030136,6]
[385775346,1758031850920,-400.0,0.00030136,6]
[385775347,1758031850930,-576.0,0.00030136,6]
[385775348,1758031850939,-400.0,0.00030136,6]
[385775349,1758031850949,-400.0,0.00030136,6]
[385775350,1758031850958,-400.0,0.00030136,6]
[385775351,1758031850967,-400.0,0.00030136,6]
[385775352,1758031850976,-400.0,0.00030136,6]
[385775353,1758031850986,-524.12,0.00030136,6]
[385775354,1758031850995,-400.0,0.00030136,6]
[385775355,1758031851005,-400.0,0.00030136,6]
[385775356,1758031851014,-400.0,0.00030136,6]
[385775357,1758031851023,-739.52,0.00030136,6]
[385775358,1758031851032,-400.0,0.00030136,6]
[385775359,1758031851041,-400.0,0.00030136,6]
[385775360,1758031851050,-400.0,0.00030136,6]
[385775361,1758031851059,-400.0,0.00030136,6]
[385775362,1758031851069,-483.07,0.00030136,6]
[385775363,1758031851078,-419.28,0.00030136,6]
[385775364,1758031851087,-400.0,0.00030136,6]
[385775365,1758031851096,-400.0,0.00030136,6]
[385775366,1758031851106,-402.53724851,0.00030136,6]
[385775367,1758031851115,-400.0,0.00030136,6]
[385775368,1758031851124,-400.0,0.00030136,6]
[385775369,1758031851134,-400.0,0.00030136,6]
[385775370,1758031851143,-400.0,0.00030136,6]
[385775371,1758031851153,-400.0,0.00030136,6]
[385775373,1758031851162,-400.0,0.00030136,6]
[385775375,1758031851171,-400.0,0.00030136,6]
[385775377,1758031851180,-400.0,0.00030136,6]
[385775379,1758031851189,-400.0,0.00030136,6]
[385775381,1758031851198,-400.0,0.00030136,6]
[385775383,1758031851208,-400.0,0.00030136,6]
[385775385,1758031851217,-1025.5,0.00030136,6]
[385775387,1758031851225,-400.0,0.00030136,6]
[385775389,1758031851235,-400.0,0.00030136,6]
[385775391,1758031851245,-669.28,0.00030136,6]
[385775393,1758031851254,-400.0,0.00030136,6]
[385775395,1758031851263,-400.0,0.00030136,6]
[385775397,1758031851272,-400.0,0.00030136,6]
[385775399,1758031851281,-447.81,0.00030136,6]
[385775401,1758031851290,-400.0,0.00030136,6]
[385775403,1758031851299,-400.0,0.00030136,6]
[385775405,1758031851308,-400.0,0.00030136,6]
[385775407,1758031851317,-760.48,0.00030136,6]
[385775409,1758031851326,-400.0,0.00030136,6]
[385775411,1758031851335,-400.0,0.00030136,6]
[385775413,1758031851344,-400.0,0.00030136,6]
[385775415,1758031851354,-400.0,0.00030136,6]
[385775417,1758031851363,-400.0,0.00030136,6]
[385775419,1758031851372,-400.0,0.00030136,6]
[385775421,1758031851382,-406.54696828,0.00030136,6]
[385775423,1758031851392,-400.0,0.00030136,6]
[385775425,1758031851400,-400.0,0.00030136,6]
[385775427,1758031851409,-400.0,0.00030136,6]
[385775429,1758031851419,-638.22,0.00030136,6]
[385775431,1758031851428,-400.0,0.00030136,6]
[385775433,1758031851437,-400.0,0.00030136,6]
[385775435,1758031851447,-400.0,0.00030136,6]
[385775437,1758031851456,-400.0,0.00030136,6]
[385775439,1758031851465,-403.96,0.00030136,6]
[385775440,1758031851474,-400.0,0.00030136,6]
[385775441,1758031851483,-400.0,0.00030136,6]
[385775442,1758031851492,-400.0,0.00030136,6]
[385775443,1758031851501,-400.0,0.00030136,6]
[385775444,1758031851511,-400.0,0.00030136,6]
[385775445,1758031851520,-800.07,0.00030136,6]
[385775446,1758031851529,-400.0,0.00030136,6]
[385775447,1758031851539,-400.0,0.00030136,6]
[385775448,1758031851549,-400.0,0.00030136,6]
[385775449,1758031851558,-400.0,0.00030136,6]
[385775450,1758031851568,-400.0,0.00030136,6]
[385775451,1758031851577,-400.0,0.00030136,6]
[385775452,1758031851586,-400.0,0.00030136,6]
[385775453,1758031851595,-400.0,0.00030136,6]
[385775454,1758031851605,-400.0,0.00030136,6]
[385775455,1758031851614,-400.0,0.00030136,6]
[385775456,1758031851623,-400.0,0.00030136,6]
[385775457,1758031851633,-405.21699542,0.00030136,6]
[385775458,1758031851642,-400.0,0.00030136,6]
[385775459,1758031851652,-400.0,0.00030136,6]
[385775460,1758031851661,-400.0,0.00030136,6]
[385775461,1758031851671,-405.04510165,0.00030136,6]
[385775462,1758031851680,-400.0,0.00030136,6]
[385775463,1758031851690,-400.0,0.00030136,6]
[385775464,1758031851700,-400.0,0.00030136,6]
[385775465,1758031851709,-400.0,0.00030136,6]
[385775466,1758031851718,-400.0,0.00030136,6]
[385775467,1758031851727,-400.0,0.00030136,6]
[385775468,1758031851736,-864.18,0.00030136,6]
[385775469,1758031851745,-520.23,0.00030136,6]
[385775470,1758031851755,-400.0,0.00030136,6]
[385775471,1758031851764,-400.0,0.00030136,6]